fUSD/lending_fUSD_20250304
["ID","MTS","AMOUNT","RATE_DAILY","PERIOD"]
[355385909,1741095037695,-1454.24614478,0.00011099,2]
[355385910,1741095037708,-1971.63812286,0.00011099,2]
[355385911,1741095037729,-3012.18350575,0.00011099,2]
[355385912,1741095037748,-606.84461065,0.00011099,2]
[355385913,1741095037764,-590.71654754,0.00011099,2]
[355385914,1741095037786,-0.03724888,0.00011099,2]
[355385915,1741095037962,-6865.34241418,0.00011099,2]
[355385916,1741095037972,-292.95734438,0.0001122,2]
[355385917,1741095037981,-292.95734438,0.0001122,2]
[355385918,1741095037990,-11928.72365904,0.0001123,2]
[355385919,1741095038002,-999.42965019,0.0001123,2]
[355385920,1741095038014,-4315.16040471,0.0001123,2]
[355385921,1741095038034,-2171.9571726,0.0001123,2]
[355385924,1741095038045,-159688.95556001,0.0001123,2]
[355385926,1741095038060,-13468.8503993,0.0001123,2]
[355385929,1741095038076,-2976.7763258,0.0001123,2]
[355385931,1741095038087,-1840.57138119,0.0001123,2]
[355385933,1741095038098,-311224.38613212,0.0001123,2]
[355385935,1741095038109,-1014.65181102,0.0001123,2]
[355385938,1741095038121,-22220.87097642,0.0001123,2]
[355385942,1741095038160,-1062.29555533,0.0001123,2]
[355385945,1741095038171,-1109.76612253,0.0001123,2]
[355385947,1741095038183,-1016.53502883,0.0001123,2]
[355385949,1741095038194,-495.03329991,0.0001123,2]
[355385951,1741095038205,-534.82997,0.0001123,2]
[355385953,1741095038217,-413.44303,0.0001123,2]
[355385955,1741095038229,-845.926513,0.0001123,2]
[355385957,1741095038240,-548.35263034,0.0001123,2]
[355385959,1741095038256,-23370.34657194,0.0001123,2]
[355385961,1741095038267,-1939.00371655,0.0001123,2]
[355385964,1741095038290,-510.0000005,0.0001123,2]
[355386099,1741095039844,-16846.21170243,0.00011099,2]
[355386101,1741095039855,-29511.09613047,0.0001123,2]
[355386106,1741095039912,-75394.80032126,0.0001123,2]
[355386109,1741095039926,-95271.45412817,0.0001123,2]
[355386111,1741095039936,-2031.0,0.00011357,2]
[355386112,1741095039947,-1012.0,0.00011357,2]
[355386114,1741095039957,-329.47439131,0.00012143,2]
[355386116,1741095039969,-292.95734438,0.00012577,2]
[355386118,1741095039979,-79367.10181541,0.00012587,2]
[355386128,1741095040084,-19756.16414662,0.00012587,2]
[355386136,1741095040158,-1995.6,0.00012587,2]
[355386138,1741095040169,-1000.0,0.00012587,2]
[355386142,1741095040201,-1705.5582732,0.00012587,2]
[355386146,1741095040392,-1049.41419005,0.00012587,2]
[355386147,1741095040404,-1685.77121904,0.00012587,2]
[355386148,1741095040416,-1007.52312096,0.00012587,2]
[355386149,1741095040432,-234941.805,0.00012587,2]
[355386150,1741095040448,-280559.96413453,0.00012587,2]
[355386153,1741095040478,-301016.29168558,0.00012587,2]
[355386155,1741095040490,-23484.62335038,0.00012587,2]
[355386157,1741095040502,-4919.72166071,0.00012587,2]
[355386160,1741095040514,-289.15000193,0.00012587,2]
[355386437,1741095043417,-467.4210005,0.00011357,2]
[355386445,1741095043482,-174.5789995,0.00011357,2]
[355386448,1741095043491,-404.0823061,0.00012587,2]
[355386511,1741095043758,-805.78275374,0.00012587,2]
[355386515,1741095043771,-4150.0,0.00012587,2]
[355386524,1741095043837,-756.51976149,0.00012587,2]
[355386526,1741095043849,-507.53028692,0.00012587,2]
[355386763,1741095046113,-71900.000003,0.00012587,2]
[355386766,1741095046137,-423.95581672,0.00012587,2]
[355386775,1741095046226,-1044.08377648,0.00012587,2]
[355386778,1741095046245,-5219.12795026,0.00012587,2]
[355386781,1741095046266,-1246.53,0.00012587,2]
[355386783,1741095046286,-515.811067,0.00012587,2]
[355386786,1741095046306,-475.33246739,0.00012587,2]
[355386789,1741095046326,-565.99524606,0.00012587,2]
[355386802,1741095046457,-16846.21170243,0.00011099,2]
[355386804,1741095046476,-1179314.56117411,0.00012587,2]
[355386807,1741095046496,-832.662,0.00012587,2]
[355386811,1741095046526,-372459.2685019,0.00012587,2]
[355386895,1741095047427,-4178.43729,0.00012587,2]
[355386898,1741095047443,-26015.20999985,0.00012587,2]
[355386900,1741095047464,-4411.6,0.00012587,2]
[355386902,1741095047477,-6497.4,0.00012587,2]
[355386905,1741095047490,-5510.5999,0.00012587,2]
[355386907,1741095047502,-15705.900014,0.00012587,2]
[355386909,1741095047520,-1785.0,0.00012587,2]
[355386911,1741095047532,-1829.6001,0.00012587,2]
[355386913,1741095047544,-4178.000024,0.00012587,2]
[355386916,1741095047557,-10074.27652081,0.00012587,2]
[355386918,1741095047568,-3671.78015,0.00012587,2]
[355386920,1741095047581,-4478.40012,0.00012587,2]
[355386922,1741095047593,-3613.57684472,0.00012587,2]
[355386927,1741095047628,-2489.3,0.00012587,2]
[355386929,1741095047645,-170000.0,0.00012587,2]
[355386932,1741095047657,-980.88,0.00012587,2]
[355386935,1741095047686,-82999.99999996,0.00012587,2]
[355386938,1741095047698,-4479.70912549,0.00012587,2]
[355386940,1741095047710,-975.11564661,0.00012587,2]
[355386942,1741095047722,-748.54074367,0.00012587,2]
[355387072,1741095254292,1000.0,0.00010205,2]
[355387073,1741095307017,161.0,0.00010205,3]
[355387075,1741095609902,161.0,0.00010205,3]
[355387077,1741095897593,200.0,0.00010154,2]
[355387078,1741095907499,161.0,0.00010205,3]
[355387079,1741096082897,10000.0,0.0001,2]
[355387080,1741096177237,929.29,9.278e-05,2]
[355387081,1741096207415,161.0,0.00010205,3]
[355387082,1741096231946,-1472.47539858,0.00010896,2]
[355387083,1741096231957,-150.0,0.00010912,2]
[355387084,1741096231967,-150.0,0.00010945,2]
[355387085,1741096231977,-550.0,0.00010948,2]
[355387086,1741096231987,-1824.12460142,0.00010985,2]
[355387087,1741096232084,-283.7538,0.00010985,2]
[355387088,1741096232146,-884.73939858,0.00010985,2]
[355387089,1741096232156,-1615.36635304,0.00010985,2]
[355387090,1741096232166,-874.09421578,0.00011097,2]
[355387098,1741096237933,-81.90578422,0.00011097,2]
[355387099,1741096237944,-150.0,0.00011123,2]
[355387100,1741096237955,-150.99,0.00011141,2]
[355387101,1741096237966,-150.0,0.00011236,2]
[355387102,1741096237976,-735.95295413,0.00011237,2]
[355387103,1741096237988,-4984.62,0.00011237,2]
[355387104,1741096238033,-2000.942007,0.00011237,2]
[355387105,1741096238139,-727.34122884,0.00011237,2]
[355387106,1741096238152,-2198.87610881,0.00011237,2]
[355387107,1741096238243,-554.11852674,0.00011237,2]
[355387108,1741096238256,-3231.50064894,0.00011237,2]
[355387109,1741096238270,-9466.64852554,0.00011237,2]
[355387110,1741096238280,-250.0,0.00011336,2]
[355387111,1741096238289,-2356.82887646,0.00011336,2]
[355387211,1741096240162,-7643.16112354,0.00011336,2]
[355387213,1741096240170,-9999.99,0.00011336,2]
[355387215,1741096240179,-299.99,0.00011336,2]
[355387217,1741096240189,-151.24,0.00011336,2]
[355387219,1741096240198,-1000.0,0.00011481,2]
[355387221,1741096240208,-1119.2,0.00011507,2]
[355387223,1741096240217,-1277.0,0.00011516,2]
[355387225,1741096240226,-2031.0,0.00011516,2]
[355387227,1741096240235,-640.0,0.00011516,2]
[355387229,1741096240244,-1458.0,0.00011516,2]
[355387231,1741096240254,-150.0,0.00011516,2]
[355387233,1741096240263,-571.0,0.00011516,2]
[355387235,1741096240273,-786.0,0.00011516,2]
[355387237,1741096240282,-951.3629211,0.00011516,2]
[355387240,1741096240302,-475.6370789,0.00011516,2]
[355387242,1741096240311,-907.0,0.00011516,2]
[355387244,1741096240320,-541.0,0.00011516,2]
[355387246,1741096240330,-1269.0,0.00011516,2]
[355387248,1741096240339,-4041.0,0.00011516,2]
[355387250,1741096240348,-3929.0,0.00011516,2]
[355387252,1741096240358,-150.0,0.00011516,2]
[355387254,1741096240367,-1012.0,0.00011516,2]
[355387256,1741096240378,-929.29,0.00011542,2]
[355387258,1741096240387,-151.24,0.00011591,2]
[355387260,1741096240396,-168.98,0.00011737,2]
[355387262,1741096240406,-344.62,0.00011781,2]
[355387264,1741096240415,-151.24,0.00011846,2]
[355387266,1741096240425,-441.19,0.00011918,2]
[355387268,1741096240434,-180.06,0.00011923,2]
[355387270,1741096240443,-550.0,0.00011986,2]
[355387272,1741096240453,-150.0,0.00011986,2]
[355387274,1741096240462,-8289.2953,0.00012,2]
[355387276,1741096240471,-550.0,0.00012022,2]
[355387298,1741096240638,-799.3428919,0.00012032,2]
[355387314,1741096240805,-2410.3611081,0.00012032,2]
[355387317,1741096240814,-166.678,0.00012035,2]
[355387319,1741096240824,-500.0,0.00012055,2]
[355387321,1741096240833,-1370.19,0.00012055,2]
[355387323,1741096240843,-151.24,0.00012101,2]
[355387325,1741096240852,-150.0,0.00012236,2]
[355387327,1741096240862,-283.10849837,0.00012252,2]
[355387329,1741096240874,-150.0,0.00012257,2]
[355387331,1741096240886,-150.0,0.00012287,2]
[355387333,1741096240896,-255.0,0.00012292,2]
[355387335,1741096240905,-150.0,0.00012297,2]
[355387337,1741096240914,-150.0,0.00012299,2]
[355387339,1741096240925,-1897.0,0.000123,2]
[355387341,1741096240935,-150.0,0.00012316,2]
[355387343,1741096240945,-1000.0,0.0001232,2]
[355387345,1741096240954,-150.0,0.00012325,2]
[355387347,1741096240965,-150.0,0.00012327,2]
[355387349,1741096240976,-150.0,0.00012328,2]
[355387351,1741096240985,-161.5760069,0.00012335,2]
[355387353,1741096240995,-150.0,0.00012338,2]
[355387355,1741096241005,-150.0,0.00012341,2]
[355387357,1741096241014,-150.0,0.00012351,2]
[355387359,1741096241023,-150.0,0.00012351,2]
[355387361,1741096241033,-1079.57717082,0.00012355,2]
[355387363,1741096241042,-1000.0,0.00012356,2]
[355387365,1741096241052,-151.24,0.00012357,2]
[355387367,1741096241061,-150.0,0.00012358,2]
[355387369,1741096241070,-150.0,0.00012366,2]
[355387371,1741096241079,-150.0,0.00012368,2]
[355387373,1741096241089,-150.0,0.00012382,2]
[355387375,1741096241099,-150.0,0.00012383,2]
[355387377,1741096241108,-579.21286029,0.00012387,2]
[355387663,1741096243876,-705.24999989,0.00012387,2]
[355387668,1741096243919,-7338.21412656,0.00012387,2]
[355387670,1741096243929,-364.4046,0.00012387,2]
[355387672,1741096243939,-873.41439408,0.00012387,2]
[355387675,1741096243955,-3860.03940592,0.00012387,2]
[355387676,1741096243966,-2457.9129,0.00012387,2]
[355387679,1741096243977,-1892.0553,0.00012387,2]
[355387681,1741096243986,-2500.0,0.00012387,2]
[355387683,1741096243995,-194.31322276,0.00012391,2]
[355387685,1741096244004,-8622.67698671,0.00012398,2]
[355387686,1741096244014,-150.0,0.000124,2]
[355387689,1741096244023,-1000.0,0.000124,2]
[355387691,1741096244033,-150.0,0.00012402,2]
[355387693,1741096244043,-8622.67698671,0.00012409,2]
[355387694,1741096244053,-150.0,0.00012414,2]
[355387696,1741096244062,-1000.0,0.00012421,2]
[355387699,1741096244074,-192.8982505,0.00012422,2]
[355387701,1741096244083,-150.0,0.00012442,2]
[355387703,1741096244093,-1000.0,0.00012449,2]
[355387704,1741096244102,-150.0,0.00012459,2]
[355387706,1741096244112,-1000.0,0.0001246,2]
[355387708,1741096244123,-150.0,0.00012469,2]
[355387710,1741096244133,-150.0,0.00012475,2]
[355387712,1741096244143,-150.0,0.00012478,2]
[355387715,1741096244152,-150.0,0.00012481,2]
[355387716,1741096244162,-170.79066141,0.00012482,2]
[355387718,1741096244171,-170.33806648,0.00012487,2]
[355387721,1741096244181,-171.34542567,0.00012487,2]
[355387722,1741096244191,-653.61401622,0.00012487,2]
[355387725,1741096244200,-150.0,0.00012494,2]
[355387727,1741096244210,-150.0,0.00012495,2]
[355387729,1741096244219,-150.0,0.00012498,2]
[355387730,1741096244229,-150.0,0.00012498,2]
[355387732,1741096244238,-150.0,0.00012503,2]
[355387734,1741096244248,-150.0,0.00012523,2]
[355387736,1741096244257,-150.0,0.00012527,2]
[355387739,1741096244267,-150.0,0.00012534,2]
[355387741,1741096244277,-1017.41485163,0.00012578,2]
[355387743,1741096244287,-1934.8989271,0.00012582,2]
[355387745,1741096244296,-182.2426609,0.00012582,2]
[355387747,1741096244306,-1009.515745,0.00012582,2]
[355387749,1741096244315,-165.6868052,0.00012582,2]
[355387751,1741096244324,-181947.7047787,0.00012582,2]
[355387753,1741096244333,-236.7248165,0.00012582,2]
[355387755,1741096244343,-500.0,0.00012586,2]
[355387757,1741096244351,-500.0,0.00012586,2]
[355387758,1741096244360,-500.0,0.00012586,2]
[355387760,1741096244371,-322.62481484,0.00012586,2]
[355387762,1741096244381,-500.0,0.00012586,2]
[355387764,1741096244390,-150679.26547602,0.00012587,2]
[355387939,1741096246117,-1113.0,0.00011516,2]
[355387941,1741096246126,-362.07076458,0.0001242,2]
[355387952,1741096246230,-8260.60622213,0.0001242,2]
[355387954,1741096246239,-62.34766028,0.00012587,2]
[355387957,1741096246252,-2298.65233972,0.00012587,2]
[355387959,1741096246262,-1683.88575028,0.00012587,2]
[355387961,1741096246277,-1657.7771364,0.00012587,2]
[355388956,1741096599638,-150.0,0.00011573,7]
[355388957,1741096827637,223.33,0.0001024,2]
[355388965,1741097432193,-289.89542101,0.00011,2]
[355388967,1741097432238,-260.10457899,0.00011,2]
[355388968,1741097432248,-437.05954532,0.00011,2]
[355388969,1741097432262,-150.0,0.00011064,2]
[355388970,1741097432272,-150.0,0.00011241,2]
[355388971,1741097432282,-274.4,0.00011382,2]
[355388972,1741097432292,-2800.39001932,0.00011382,2]
[355388973,1741097432303,-150.0,0.00011439,2]
[355388974,1741097432312,-300.0,0.00011439,2]
[355388975,1741097432322,-1458.0,0.0001144,2]
[355388976,1741097432331,-571.0,0.0001144,2]
[355388977,1741097432341,-640.0,0.0001144,2]
[355388978,1741097432351,-786.0,0.0001144,2]
[355388979,1741097432360,-1269.0,0.0001144,2]
[355388980,1741097432370,-1427.0,0.0001144,2]
[355388981,1741097432381,-541.0,0.0001144,2]
[355388982,1741097432391,-675.13606717,0.0001144,2]
[355388983,1741097432492,-231.86393283,0.0001144,2]
[355388984,1741097432502,-4041.0,0.0001144,2]
[355388985,1741097432512,-978.471,0.0001144,2]
[355388986,1741097432522,-150.0,0.0001144,2]
[355388987,1741097432532,-3929.0,0.0001144,2]
[355388988,1741097432541,-150.0,0.00011516,2]
[355388989,1741097432551,-150.0,0.00011516,2]
[355388990,1741097432561,-175.218,0.00011516,2]
[355388991,1741097432570,-150.0,0.00011516,2]
[355388992,1741097432579,-150.0,0.00011516,2]
[355388993,1741097432589,-1275.999,0.00011516,2]
[355388994,1741097432599,-2031.0,0.00011516,2]
[355388995,1741097432608,-449.85,0.00011537,2]
[355388996,1741097432618,-500.0,0.00011587,2]
[355388997,1741097432628,-500.0,0.00011587,2]
[355388998,1741097432637,-500.0,0.00011587,2]
[355388999,1741097432647,-500.0,0.00011587,2]
[355389000,1741097432657,-162.33,0.00011696,2]
[355389001,1741097432667,-777.67,0.000117,2]
[355389002,1741097432676,-777.81,0.000117,2]
[355389003,1741097432686,-1000.0,0.0001171,2]
[355389004,1741097432696,-550.0,0.00011716,2]
[355389005,1741097432706,-887.92,0.00011917,2]
[355389006,1741097432715,-1555.19,0.00011918,2]
[355389007,1741097432725,-777.81,0.00011918,2]
[355389008,1741097432735,-2100.0,0.00012,2]
[355389009,1741097432744,-3878.74,0.00012055,2]
[355389010,1741097432754,-150.0,0.000121,2]
[355389011,1741097432763,-1553.32,0.000122,2]
[355389012,1741097432773,-777.67,0.000122,2]
[355389013,1741097432782,-777.67,0.000122,2]
[355389014,1741097432792,-161.5760069,0.00012335,2]
[355389015,1741097432801,-5173.60619208,0.00012486,2]
[355389016,1741097432811,-318.45310178,0.00012486,2]
[355389017,1741097432820,-5173.60619202,0.00012486,2]
[355389019,1741097432830,-5173.60619202,0.00012486,2]
[355389022,1741097432840,-5173.60619202,0.00012486,2]
[355389025,1741097432850,-5173.60619202,0.00012486,2]
[355389027,1741097432859,-5173.60619202,0.00012487,2]
[355389030,1741097432868,-5173.60619202,0.00012487,2]
[355389033,1741097432881,-5173.60619202,0.00012487,2]
[355389036,1741097432891,-976.169,0.00012487,2]
[355389039,1741097432901,-5173.60619202,0.00012487,2]
[355389042,1741097432911,-171.34542567,0.00012487,2]
[355389045,1741097432921,-92587.62783621,0.00012487,2]
[355389049,1741097432931,-5173.60619202,0.00012487,2]
[355389051,1741097432940,-255.0,0.00012503,2]
[355389055,1741097432951,-420.0,0.00012565,2]
[355389058,1741097432960,-2709.45357235,0.0001257,2]
[355389061,1741097432971,-1520.85124593,0.00012576,2]
[355389064,1741097432980,-2367.172354,0.00012582,2]
[355389067,1741097432990,-557.4333982,0.00012582,2]
[355389069,1741097432999,-394.9874763,0.00012582,2]
[355389071,1741097433010,-500.0,0.00012585,2]
[355389073,1741097433019,-500.0,0.00012585,2]
[355389075,1741097433030,-625.83737039,0.00012585,2]
[355389077,1741097433040,-156.0,0.00012586,2]
[355389079,1741097433050,-255.56031444,0.00012586,2]
[355389081,1741097433060,-170.30875415,0.00012586,2]
[355389083,1741097433071,-306.61480414,0.00012586,2]
[355389085,1741097433081,-2323.0,0.00012587,2]
[355389087,1741097433091,-180.55397174,0.00012587,3]
[355389088,1741097433102,-40789.57233488,0.00012587,2]
[355389089,1741097433145,-6942.65589084,0.00012587,2]
[355389102,1741097438038,-429.20616,0.0001144,2]
[355389103,1741097438051,-683.79384,0.0001144,2]
[355389104,1741097438061,-638.08615927,0.00012586,2]
[355389105,1741097438071,-52711.03364384,0.00012587,2]
[355389106,1741097438366,-989.95532224,0.00012587,2]
[355389109,1741097440311,-500.0,0.00012586,2]
[355389110,1741097440321,-7800.4959984,0.00012587,2]
[355389111,1741097440333,-65112.33705047,0.00012587,2]
[355389112,1741097440345,-1173.70891906,0.00012587,2]
[355389113,1741097440519,-672.15197088,0.00012587,2]
[355389114,1741097440643,-6593.26551032,0.00012587,2]
[355389140,1741097443686,-362.08087598,0.00012587,2]
[355389141,1741097443702,-362.255,0.00012587,2]
[355389145,1741097443977,-1243.33479485,0.00012587,2]
[355389148,1741097445288,-18449.0,0.00012587,2]
[355389155,1741097446340,-301.38705565,0.00012587,2]
[355389156,1741097446486,-4167.64255582,0.00012587,2]
[355389169,1741097784751,-150.0,0.00011909,7]
[355389170,1741098022187,863.18,9.837e-05,2]
[355389182,1741098632419,-550.0,0.00011,2]
[355389183,1741098632429,-150.0,0.00011115,2]
[355389184,1741098632439,-1472.47539858,0.00011155,2]
[355389185,1741098632449,-150.0,0.00011229,2]
[355389186,1741098632459,-203414.72014511,0.0001123,2]
[355389187,1741098632509,-335.73,0.0001123,2]
[355389188,1741098632521,-4586.06303229,0.0001123,2]
[355389189,1741098632584,-9572.9166901,0.0001123,2]
[355389190,1741098632597,-1517.7796849,0.0001123,2]
[355389191,1741098632661,-21811.86965559,0.0001123,2]
[355389192,1741098632671,-150.0,0.00011255,2]
[355389193,1741098632681,-1000.0,0.00011331,2]
[355389194,1741098632695,-265.69985204,0.00011487,2]
[355389195,1741098632706,-500.0,0.00011587,2]
[355389196,1741098632716,-388.86,0.00011587,2]
[355389197,1741098632726,-500.0,0.00011587,2]
[355389198,1741098632736,-265.69985202,0.00011598,2]
[355389199,1741098632746,-1458.0,0.00011675,2]
[355389200,1741098632756,-571.0,0.00011675,2]
[355389201,1741098632766,-640.0,0.00011675,2]
[355389202,1741098632777,-786.0,0.00011675,2]
[355389203,1741098632787,-272.33659584,0.00011675,2]
[355389204,1741098632826,-297.04785907,0.00011675,2]
[355389205,1741098632921,-253.83214093,0.00011675,2]
[355389206,1741098632933,-354.55891309,0.00011675,2]
[355389207,1741098632945,-91.22449107,0.00011675,2]
[355389208,1741098632955,-907.0,0.00011675,2]
[355389209,1741098632965,-1427.0,0.00011675,2]
[355389210,1741098632975,-541.0,0.00011675,2]
[355389211,1741098632985,-4041.0,0.00011675,2]
[355389212,1741098632994,-1113.0,0.00011675,2]
[355389213,1741098633003,-183.04072272,0.00011675,2]
[355389214,1741098633016,-116.94927728,0.00011675,2]
[355389215,1741098633026,-4895.55072272,0.00011675,2]
[355389216,1741098633039,-3759.72203652,0.00011675,2]
[355389217,1741098633060,-398.05286501,0.00011675,2]
[355389263,1741098638326,-946.66437575,0.00011675,2]
[355389264,1741098638336,-826.61,0.00011675,2]
[355389265,1741098638347,-999.99,0.00011675,2]
[355389266,1741098638356,-499.99,0.00011675,2]
[355389267,1741098638369,-106.00590626,0.00011675,2]
[355389268,1741098638491,-44.99409374,0.00011675,2]
[355389269,1741098638501,-150.0,0.00011675,2]
[355389270,1741098638511,-1518.56658977,0.00011675,2]
[355389271,1741098638522,-2410.43341023,0.00011675,2]
[355389272,1741098638532,-265.69985202,0.00011709,2]
[355389273,1741098638542,-923.78,0.00011709,2]
[355389274,1741098638552,-223.82,0.00011754,2]
[355389275,1741098638562,-150.0,0.00011803,7]
[355389276,1741098638571,-265.69985202,0.0001182,2]
[355389277,1741098638581,-443.96,0.00011914,2]
[355389278,1741098638590,-265.69985202,0.00011931,2]
[355389279,1741098638601,-562.98363128,0.00012,2]
[355389280,1741098638610,-265.69985202,0.00012043,2]
[355389281,1741098638625,-250.0,0.00012079,2]
[355389282,1741098638636,-550.0,0.000121,2]
[355389283,1741098638649,-150.0,0.000121,2]
[355389284,1741098638659,-863.18,0.00012101,2]
[355389285,1741098638668,-265.69985202,0.00012154,2]
[355389286,1741098638679,-344.5,0.00012192,2]
[355389287,1741098638693,-303.53,0.000122,2]
[355389288,1741098638703,-265.69985202,0.00012265,2]
[355389289,1741098638714,-255.0,0.00012285,2]
[355389290,1741098638725,-161.576007,0.00012335,2]
[355389291,1741098638737,-265.69985202,0.00012376,2]
[355389292,1741098638747,-1739.0105,0.00012487,2]
[355389293,1741098638757,-1000.0,0.00012487,2]
[355389294,1741098638766,-32.07366181,0.00012487,2]
[355389295,1741098638802,-147.04036486,0.00012487,2]
[355389296,1741098638812,-269.90580222,0.00012487,2]
[355389441,1741098640517,-1374.92019136,0.00012487,2]
[355389443,1741098640527,-265.69985202,0.00012487,2]
[355389445,1741098640538,-435.74267748,0.00012487,2]
[355389447,1741098640548,-300.0,0.00012575,2]
[355389449,1741098640558,-505.08,0.00012575,2]
[355389451,1741098640568,-1195.85727914,0.00012582,2]
[355389463,1741098640695,-242.50964686,0.00012582,2]
[355389465,1741098640706,-465.692062,0.00012582,2]
[355389467,1741098640716,-321.7783935,0.00012582,2]
[355389474,1741098640774,-517.8643949,0.00012582,2]
[355389476,1741098640784,-101.9456051,0.00012582,2]
[355389960,1741098645804,-324.7262366,0.00012582,2]
[355389961,1741098645814,-2667.818,0.00012582,2]
[355389963,1741098645825,-173.504,0.00012582,2]
[355389965,1741098645834,-1422.44474629,0.00012582,2]
[355389970,1741098645893,-540.43350998,0.00012582,2]
[355389972,1741098645905,-563.58916789,0.00012582,2]
[355390015,1741098647128,-560.13269588,0.00012582,2]
[355390020,1741098647267,-377.33667052,0.00011825,2]
[355390021,1741098647281,-3.57432948,0.00011825,2]
[355390022,1741098647292,-714.15525307,0.00012582,2]
[355390023,1741098647323,-703.07302319,0.00012582,2]
[355390024,1741098647334,-1476.19156329,0.00012587,2]
[355390047,1741098858465,-567.4,0.00010959,2]
[355390048,1741099042263,776.86,9.885e-05,2]
[355390054,1741099394543,-300.0,0.00012,4]
[355390055,1741099491863,-161.0,0.00010959,3]
[355390056,1741099506123,-151.52002633,0.00015,20]
[355390057,1741099537827,4054.0,0.00020011,120]
[355390059,1741099573360,-162.0,0.00010959,3]
[355390060,1741099573399,-154.0,0.00012587,3]
[355390061,1741099573433,-2159.0,0.00012948,3]
[355390062,1741099785216,1685.0,0.00020011,120]
[355390063,1741099824404,-150.0,0.00011252,7]
[355390081,1741099831596,-162.0,0.00010959,3]
[355390082,1741099831614,-150.0,0.00011168,2]
[355390083,1741099831624,-109.627,0.00011237,2]
[355390084,1741099831636,-40.373,0.00011237,2]
[355390085,1741099831646,-150.0,0.00011252,2]
[355390086,1741099831656,-675.92,0.00011252,2]
[355390087,1741099831666,-1000.0,0.00011289,2]
[355390088,1741099831676,-151.81,0.00011394,2]
[355390089,1741099831686,-973.06,0.00011461,2]
[355390090,1741099831696,-1192.3505596,0.00011507,2]
[355390091,1741099831823,-1558.6494404,0.00011507,2]
[355390092,1741099831833,-441.3505596,0.00011518,2]
[355390093,1741099831844,-1673.191132,0.00011518,2]
[355390094,1741099831860,-151.81,0.00011523,2]
[355390095,1741099831870,-999.99,0.00011523,2]
[355390096,1741099831879,-4243.83890691,0.00011523,2]
[355390097,1741099831891,-500.56005864,0.00011523,2]
[355390098,1741099831904,-5255.59103445,0.00011523,2]
[355390099,1741099831914,-299.99,0.00011523,2]
[355390100,1741099831924,-151.81,0.00011651,2]
[355390101,1741099831935,-150.0,0.00011773,2]
[355390102,1741099831946,-165.4,0.00011774,2]
[355390103,1741099831956,-2364.56973739,0.00011774,2]
[355390104,1741099832029,-250.54459124,0.00011774,2]
[355390105,1741099832041,-7384.87567137,0.00011774,2]
[355390106,1741099832051,-2919.18061986,0.00011774,2]
[355390107,1741099832065,-9863.86048695,0.00011774,2]
[355390149,1741099837530,-425.155,0.00011774,2]
[355390150,1741099837542,-2228.83389319,0.00011774,2]
[355390151,1741099837552,-1523.19,0.00011774,2]
[355390152,1741099837562,-1452.92,0.00011774,2]
[355390153,1741099837572,-151.81,0.00011779,2]
[355390154,1741099837582,-640.0,0.00011835,2]
[355390155,1741099837592,-571.0,0.00011835,2]
[355390156,1741099837603,-1290.263,0.00011835,2]
[355390157,1741099837617,-786.0,0.00011835,2]
[355390158,1741099837627,-1269.0,0.00011835,2]
[355390159,1741099837636,-907.0,0.00011835,2]
[355390160,1741099837646,-1427.0,0.00011835,2]
[355390161,1741099837657,-541.0,0.00011835,2]
[355390162,1741099837667,-4041.0,0.00011835,2]
[355390163,1741099837678,-3929.0,0.00011835,2]
[355390164,1741099837687,-150.0,0.00011835,2]
[355390165,1741099837697,-1133.08,0.00011835,2]
[355390166,1741099837708,-151.81,0.00011907,2]
[355390167,1741099837717,-150.0,0.00011978,2]
[355390168,1741099837727,-300.0,0.00012,4]
[355390169,1741099837737,-151.81,0.00012035,2]